Cogmind - Beta 11.1 @@@ ROGUE MODE // 2022.08.17 @ 10:14:50 Player: E Sleek Result: Destroyed by G-34 Mercenary with Small Laser Performance ------------- Evolutions (0) 0 Regions Visited (1) 200 Robots Destroyed (19) 95 Value Destroyed (458) 458 Prototype IDs (4) 80 Alien Tech Used (0) 0 Bonus (0) 0 TOTAL SCORE: 833 Bonus ------- None Cogmind --------- Core Integrity 0/250 Matter 242/300 Energy 59/100 System Corruption 3% Temperature Cool (6) Movement Walking (120) Location -10/Materials Parts ------- > --- POWER (1) -------- (None) > --- PROPULSION (2) --- Aluminum Leg > --- UTILITY (2) ------ Sensor Array Signal Interpreter > --- WEAPON (2) ------- Small Laser > --- INVENTORY (5) ---- Light Ion Engine Small Storage Unit Targeting Computer Power Shielding Light Armor Plating Peak State ------------ > --- POWER ------------ Light Nuclear Core > --- PROPULSION ------- Aluminum Leg Aluminum Leg > --- UTILITY ---------- Improved Heat Sink Small Storage Unit > --- WEAPON ----------- Small Laser Small Laser > --- INVENTORY -------- Light Ion Engine Signal Interpreter [Rating: 11] Favorites ----------- Power Light Ion Engine Engine Light Ion Engine Power Core Light Nuclear Core Propulsion Aluminum Leg Leg Aluminum Leg Utility Small Storage Unit Device Improved Heat Sink Storage Small Storage Unit Processor Signal Interpreter Weapon Small Laser Energy Gun Small Laser Ballistic Gun Assault Rifle Launcher EMP Blaster Build | -11 -10 ------- Run | Scr Mat Slots Evolved . | . . Power . | . . Propulsion . | . . Utility . | . . Weapon . | . . Parts Attached 24 | 6 18 Power 4 | 1 3 Engine 3 | 1 2 Core 1 | . 1 Reactor . | . . Propulsion 8 | 2 6 Treads . | . . Leg 8 | 2 6 Wheel . | . . Hover . | . . Flight . | . . Utility 5 | 1 4 Device 3 | . 3 Storage 1 | 1 . Processor 1 | . 1 Hackware . | . . Protection . | . . Artifact . | . . Weapon 7 | 2 5 Energy Gun 5 | 1 4 Energy Cannon . | . . Ballistic Gun 1 | 1 . Ballistic Cannon . | . . Launcher 1 | . 1 Special Weapon . | . . Impact Weapon . | . . Slashing Weapon . | . . Piercing Weapon . | . . Special Melee Weapon . | . . Unidentified Prototypes . | . . Parts Lost 5 | . 5 Power 2 | . 2 Propulsion . | . . Utility 1 | . 1 Weapon 2 | . 2 Highest Loss Streak 3 | . 3 To Critical Strikes . | . . Average Slot Usage (%) 95 | . 95 Engine 12 | . 12 Leg 27 | . 27 Device 12 | . 12 Storage 4 | . 4 Processor 9 | . 9 Energy Gun 25 | . 25 Ballistic Gun 1 | . 1 Naked Turns . | . . Heaviest Build 13 | 11 13 Greatest Support 20 | 20 20 Greatest Overweight (x) 1 | 1 1 Average Overweight (x) . | . . Largest Inventory Capacity 8 | 8 8 Average Capacity 6 | 7 6 Most Carried 5 | 1 5 Average Carried 3 | . 4 Final Capacity 8 | 8 5 Final Carried 5 | 1 5 Class Distribution -------------------- 55% | Scavenger-Mutant 44% | Mutant Dominant Class ---------------- Scavenger-Mutant | -10/Materials Resources | -11 -10 ----------- Run | Scr Mat Matter Collected 426 | 195 231 Remotely . | . . Salvage Created 515 | . 515 Parts 38 | . 38 Haulers Intercepted . | . . Recyclers Shooed . | . . Parts Field Recycled . | . . Retrieved Matter . | . . Parts Self-Destructed . | . . Prevented . | . . Kills | -11 -10 ------- Run | Scr Mat Combat Hostiles Destroyed 15 | . 15 Guns 12 | . 12 AOE 3 | . 3 Classes Destroyed 5 | . 5 Worker 1 | . 1 Operator 1 | . 1 Watcher 2 | . 2 Swarmer 6 | . 6 Grunt 9 | . 9 Best Kill Streak 3 | . 3 Combat Bots Only 3 | . 3 Max Kills in Single Turn 2 | . 2 Gunslinging . | . . Exploded 2 | . 2 Melee . | . . Uniques/NPCs Destroyed . | . . Combat | -11 -10 -------- Run | Scr Mat Damage Taken 945 | . 945 Core 250 | . 250 Absorbed by Shields . | . . Regen/Repaired (Parts) 30 | . 30 Core Remaining (%) 100 | 100 . Volleys Fired 67 | . 67 Largest 2 | . 2 Hottest 80 | . 80 Shots Fired 117 | . 117 Gun 111 | . 111 Cannon . | . . Launcher 6 | . 6 Special . | . . Kinetic 15 | . 15 Thermal 96 | . 96 Explosive . | . . Electromagnetic 6 | . 6 Robot Hit Streak 6 | . 6 Robot Miss Streak 5 | . 5 Penetration Max . | . . Secondary Targets 1 | . 1 Max Gunslinging Chain 1 | . 1 Shots Hit Robots 67 | . 67 Core Hits 29 | . 29 Critical Kills . | . . Critical Parts Destroyed . | . . Critical Strikes . | . . Melee Attacks . | . . Impact . | . . Slashing . | . . Piercing . | . . Sneak Attacks . | . . Combat Hostiles . | . . Follow-up Attacks . | . . Damage Inflicted 877 | . 877 Guns 716 | . 716 Cannons . | . . Explosions 161 | . 161 Melee . | . . Ramming . | . . Kinetic 93 | . 93 Thermal 623 | . 623 Explosive . | . . Electromagnetic 161 | . 161 Impact . | . . Slashing . | . . Piercing . | . . Highest Corruption 3 | . 3 Average Corruption 2 | . 2 Corruption Purged . | . . Corruption Blocked . | . . Effects 3 | . 3 Message Errors 2 | . 2 Data Loss (minor) 1 | . 1 Overload Shots . | . . Overflow Damage . | . . Projectiles . | . . Explosions . | . . Melee . | . . Knockbacks . | . . Impact . | . . Kinetic . | . . Secondary . | . . Self-Inflicted Damage 22 | . 22 Shots 2 | . 2 Rammed . | . . Targets Rammed . | . . Kicked . | . . Crushed . | . . Highest Temperature 54 | . 54 Average Temperature 16 | . 16 Received Heat Transfer 420 | . 420 Siege Activations . | . . Robots Corrupted . | . . Combat Hostiles . | . . Parts Fried . | . . Impact Corruptions . | . . Robots Melted . | . . Combat Hostiles . | . . Parts Melted 1 | . 1 Heat Transferred 1425 | . 1425 Parts Sabotaged . | . . Parts Stolen . | . . Parts Stripped . | . . Power Chain Reactions 1 | . 1 Missiles Intercepted . | . . Alert | -11 -10 ------- Run | Scr Mat Peak Influence 374 | . 374 Initial . | . . Average 72 | . 107 Maximum Alert Level 1 | . 1 Low Security (%) 95 | 100 93 Level 1 4 | . 6 Level 2 . | . . Level 3 . | . . Level 4 . | . . Level 5 . | . . High Security . | . . Max Security . | . . Squads Dispatched 3 | . 3 Investigation . | . . Extermination . | . . Reinforcement 3 | . 3 Assault . | . . Garrison . | . . Intercept . | . . Searches Triggered . | . . Construction Impeded . | . . Haulers Reinforced . | . . Active Scanning Responses . | . . Cargo Convoy Interrupts . | . . Stealth | -11 -10 --------- Run | Scr Mat Distress Signals 1 | . 1 Communications Jammed . | . . Distress Signals . | . . Times Spotted 31 | . 31 Peak Tracking Total 6 | . 6 Tactical Retreats 2 | . 2 Traps | -11 -10 ------- Run | Scr Mat Traps Triggered 5 | . 5 Indirectly . | . . Trap Hack Attempts . | . . Triggered . | . . Disarmed . | . . Reprogrammed . | . . Reused . | . . Traps Extracted . | . . Installed . | . . Triggered . | . . Machines | -11 -10 ---------- Run | Scr Mat Machines Disabled 3 | . 3 Max in Single Turn 2 | . 2 Machines Sabotaged . | . . Garrisons Compromised . | . . Overloaded Fab Kills . | . . Hacking | -11 -10 --------- Run | Scr Mat Machines Accessed 6 | . 6 Terminals 4 | . 4 Fabricators . | . . Repair Stations 1 | . 1 Recycling Units 1 | . 1 Scanalyzers . | . . Garrison Access . | . . Total Hacks 8 | . 8 Successful 7 | . 7 Failed 1 | . 1 Catastrophic . | . . Database Lockouts . | . . Manual . | . . Terminals 5 | . 5 Fabricators . | . . Repair Stations 2 | . 2 Recycling Units 1 | . 1 Scanalyzers . | . . Garrison Access . | . . Terminal Hacks 4 | . 4 Record 1 | . 1 Prototype ID Bank 2 | . 2 Alert Level 1 | . 1 Fabricator Hacks . | . . Repair Station Hacks 2 | . 2 Scan Component 1 | . 1 Repair 1 | . 1 Recycling Unit Hacks 1 | . 1 Report Inventory 1 | . 1 Scanalyzer . | . . Garrison Access Hacks . | . . Unauthorized Hacks . | . . Terminals . | . . Fabricators . | . . Repair Stations . | . . Recycling Units . | . . Scanalyzers . | . . Garrison Access . | . . Data Cores Recovered . | . . Used . | . . Hacking Detections 1 | . 1 Full Trace Events . | . . Feedback Events . | . . Feedback Blocked . | . . Robot Schematics Acquired . | . . Robots Built . | . . Authchips . | . . Time . | . . Total Robot Build Rating . | . . Part Schematics Acquired . | . . Parts Built . | . . Authchips . | . . Time . | . . Total Part Build Rating . | . . Parts Repaired 1 | . 1 Time 26 | . 26 Parts Recycled . | . . Recycled Matter . | . . Retrieved Matter . | . . Retrieved Components . | . . Parts Scanalyzed . | . . Part Schematics Acquired . | . . Parts Damaged . | . . Bothacking | -11 -10 ------------ Run | Scr Mat Used RIF Installer . | . . Robots Hacked . | . . Non-combat . | . . Combat . | . . Robot Hacks Applied . | . . Relay Couplers Released . | . . Fabnet Peak Effective % . | . . Robots Rewired . | . . Allies Hacked . | . . Hacks Repelled . | . . Allies | -11 -10 -------- Run | Scr Mat Total Allies . | . . Largest Group . | . . Highest-Rated Group . | . . Highest-Rated Ally . | . . Total Orders . | . . Ally Attacks . | . . Total Damage . | . . Kills . | . . Allies Corrupted . | . . Allies Melted . | . . Intel | -11 -10 ------- Run | Scr Mat Robot Analysis Total . | . . Derelict Logs Recovered . | . . Drone Launches . | . . Drone Recoveries . | . . Exploration | -11 -10 ------------- Run | Scr Mat Turns Passed 1665 | 546 1119 Spaces Moved 851 | 186 665 Core 15 | 13 2 Treads . | . . Legs 836 | 173 663 Wheels . | . . Hover . | . . Flight . | . . Fastest Speed 50 | 50 100 Average Speed 119 | 117 119 Slowest Speed 120 | 120 120 Overloaded Moves . | . . Propulsion Burnouts . | . . Robots Hopped . | . . Cave-ins Triggered . | . . Exploration Rate (%) 53 | 17 90 Regions Visited 1 Branch Regions . Pre-discovered Areas . | . . Known Exits Taken . | . . Unknown Exits Taken 1 | 1 . Scrap Searched . | . . Spaces Dug . | . . Terrain Destroyed 41 | . 41 Melee . | . . Projectile . | . . AOE 41 | . 41 Terrain Rammed . | . . Walls Destroyed . | . . Machines Disabled . | . . Actions | -11 -10 --------- Run | Scr Mat Total 1376 | 510 866 Wait 415 | 318 97 Move 850 | 185 665 Hop . | . . Pick Up 9 | 1 8 Fast Attach 21 | 6 15 Attach 1 | . 1 Detach . | . . Swap 2 | . 2 Drop 11 | . 11 Fire 67 | . 67 Melee . | . . Ram . | . . Kick . | . . Crush . | . . Escape Stasis . | . . Rewire . | . . Trap . | . . Miscellaneous . | . . Route ------- -11/Scrapyard -10/Materials (discovered 3 exits: *Mat x3) History --------- Turn | Location | Event 2 | -11/Scrapyard | Met Revision 17 21 | -11/Scrapyard | Discovered new exit (range 14) 547 | -11/Scrapyard | Entered Materials 548 | -10/Materials | Build established: Mutant 687 | -10/Materials | Core integrity fell below 50% 694 | -10/Materials | Lost 3 parts (1p1u1w) 901 | -10/Materials | Discovered new exit (range 16) 934 | -10/Materials | Identified exit to Materials 973 | -10/Materials | Build established: Scavenger-Mutant 1348 | -10/Materials | Discovered exit to Materials (range 6) 1406 | -10/Materials | Repaired Lgt. Ion Engine 1449 | -10/Materials | Discovered exit to Materials (range 14) 1625 | -10/Materials | Core integrity fell below 20% 1666 | -10/Materials | Destroyed by G-34 Mercenary with Small Laser Last Messages --------------- M006. 01615_ U-05 Engineer builds a Door. 01619_ U-05 Engineer builds a Wall. 01620_ U-05 Engineer lays Concrete. 01625_ Triggered Blade Trap. 01625_ Massive razor-sharp blades shoot up from within the floor. 01625_ Aluminum Leg severed. 01626_ G-34 Mercenary destroyed. 01626_ K-01 Serf destroyed. 01626_ Door malfunctions. 01633_ HJ5 DK#KYMZNJXX1DKIJ7WYOQ8R%J/H/DJT< 01637_ U-05 Engineer lays Concrete. 01638_ Lgt. Ion Engine destroyed. 01640_ U-05 Engineer builds a Wall. 01642_ EMP Blaster destroyed. 01644_ G-34 Mercenary misfires. 01644_ U-05 Engineer lays Concrete. 01645_ U-05 Engineer builds a Wall. 01649_ U-05 Engineer lays Concrete. 01650_ G-34 Mercenary misfires. Map ----- +----------------------------------------------------+ | # + ^ ]]#???# # # | | #########+#### """ ]]#???# < # + | | ???# # "" !!#???# # # | | ???# # " !!#???# # # | | ???# """ + [ ]#???# ####### | | ???# """"" # ]]#???# | | ???# """"" ##""" """##???# | | ???# """"" # "#???# ############# | | ???# """ # "#???# ## [#? | | ???# " "#???# ## #? | | ???####+###### ] "#???# ## """ """#? | | ??????# #???# "#???# ## """ R"#? | | ??????# #???# ##???# ## """ """#? | | ??????# #####"" #???## ## #? | | ??????# "" #???# ###+#######? | | ??????###### "" x #???# #???? | | ???????????# #"####+####???# T #???? | | ???????????# #?????# #???? | | ???????????# #?????# #### #???? | | ?????????X?# #?????#######??# ##### | | ???????????######## #??????????????# | | ??????????????????#^ =#???????######## | | ??????????????????# #???????# x | | ?????????????????## ######### ##### | | ??????????######## #???? | | ??????????# =%[ @ #########+#########?### | | ??????????# < = g k x #???# | | ??????????# % ### ""#???# | | ??????????# ##/### #?# """ """ Y"#???# | | ????????????# ??#######?# """ """ ""#???# | | ????????????# ???????????# """ """ #???# | | ????????????#????????????# #???# | | ?????????????????????????##################### | | ?????????????????????????????????# | | ?????????????????????????????????# | | ?????????????????????????????????# | | ?????????????????????????????????# ######### | | ?????????????????????????????????# #???????? | | ?????????????????????????????????# #???????? | | ?????????????????????????????????# #???????? | | ?????????????????????????????????# ######### | | ????????????????????######???????# # # | | ????????????????????# ######### # | # | | ????????????????????# + # | | ????????????????????# ######### | | ????????????????????# ######### #??# ! [ | | ????????????????????## ########## #??# | | ?????????????????????# # # #??# | | ?????????????????????# # # #??# | | ??????????????######?# # # #??# """ | +----------------------------------------------------+ Best States ------------- Heat Dissipation 39 Energy Generation 14 Energy Capacity 160 Matter Stores 300 Matter Capacity 300 Sight Range 16 Robot Scan Range 14 Terrain Scan Density 10 Evasion (%) 55 Item Schematics ----------------- None Robot Schematics ------------------ None Fabricated ------------ Nothing Alien Tech Used ----------------- None Achievements -------------- None Challenges ------------ None Game ------ Seed PotentialLinkedAutogun Manual? 0 Play Time 00:14:32 Cumulative 5.9 hours Start 2022.08.17 @ 10:01:21 End 2022.08.17 @ 10:14:50 Sessions 1 Manual Loads 0 Difficulty Rogue Special Mode None Game No. 5 Rogue 5 Adventurer 0 Explorer 0 Win Type - Total 0 Types 0/0/0/0/0/0/0/0/0 Lore% 12 Gallery% 11 Achievement% 10 Wizard Run 0 Options --------- ASCII 0 Keyboard 0 Movement Mouse Keybinds 0 Fullscreen 1 Font 18/X11 Map View 76x50 Tactical HUD 1 Map Filters NONE Filters NONE Steam 1 RUN: e8078a9c-1766-4004-a292-19296ed21284